Cogmind - Beta 12 @@@ ROGUE MODE // 2023.03.19 @ 15:54:27 Player: BRiNK Result: Self-destructed Performance ------------- Evolutions (1) 500 Regions Visited (3) 600 Robots Destroyed (19) 95 Value Destroyed (431) 431 Prototype IDs (0) 0 Alien Tech Used (0) 0 Bonus (0) 0 TOTAL SCORE: 1626 Bonus ------- None Cogmind --------- Core Integrity 122/400 Matter 216/300 Energy 100/100 System Corruption 0% Temperature Cool (6) Movement Core (100) Ox1 Location -9/Mines Parts ------- > --- POWER (2) -------- (None) > --- PROPULSION (3) --- (None) > --- UTILITY (2) ------ Small Storage Unit > --- WEAPON (2) ------- (None) > --- INVENTORY (8) ---- Heat Sink Reflective Plating Reflective Plating Pulse Rifle Peak State ------------ > --- POWER ------------ Ion Engine Ion Engine > --- PROPULSION ------- Aluminum Leg Aluminum Leg Aluminum Leg > --- UTILITY ---------- Small Storage Unit Light Armor Plating > --- WEAPON ----------- Pulse Rifle Assault Rifle > --- INVENTORY -------- Light Armor Plating EM Pulse Gun Grenade Launcher [Rating: 11] Favorites ----------- Power Ion Engine Engine Ion Engine Propulsion Aluminum Leg Leg Aluminum Leg Utility Small Storage Unit Storage Small Storage Unit Protection Light Armor Plating Weapon Assault Rifle Energy Gun EM Pulse Gun Ballistic Gun Assault Rifle Launcher Grenade Launcher Build | -11 -10 -9 -9 ------- Run | Jun Mat Mat Min Slots Evolved 2 | . . 2 . Power 1 | . . 1 . Propulsion 1 | . . 1 . Utility . | . . . . Weapon . | . . . . Parts Attached 18 | 6 2 6 4 Power 2 | 1 . 1 . Engine 2 | 1 . 1 . Core . | . . . . Reactor . | . . . . Propulsion 4 | 2 1 1 . Treads . | . . . . Leg 4 | 2 1 1 . Wheel . | . . . . Hover . | . . . . Flight . | . . . . Utility 3 | 1 1 1 . Device . | . . . . Storage 1 | 1 . . . Processor . | . . . . Hackware . | . . . . Protection 2 | . 1 1 . Artifact . | . . . . Weapon 9 | 2 . 3 4 Energy Gun 2 | . . 2 . Energy Cannon . | . . . . Ballistic Gun 5 | 2 . 1 2 Ballistic Cannon . | . . . . Launcher 2 | . . . 2 Special Weapon . | . . . . Impact Weapon . | . . . . Slashing Weapon . | . . . . Piercing Weapon . | . . . . Special Melee Weapon . | . . . . Unidentified Prototypes . | . . . . Parts Lost 9 | . . 2 7 Power 2 | . . . 2 Propulsion 2 | . . 1 1 Utility 2 | . . 1 1 Weapon 3 | . . . 3 Highest Loss Streak 7 | . . 1 7 To Critical Strikes . | . . . . Average Slot Usage (%) 88 | . 85 96 75 Engine 19 | . 14 22 20 Leg 24 | . 26 30 11 Storage 11 | . 14 11 11 Protection 8 | . 2 10 10 Energy Gun 4 | . . 3 11 Ballistic Gun 17 | . 28 18 7 Naked Turns . | . . . . Heaviest Build 23 | 13 16 23 23 Greatest Support 30 | 20 20 30 10 Greatest Overweight (x) 5 | 1 1 2 5 Average Overweight (x) . | . . . 2 Largest Inventory Capacity 8 | 8 8 8 8 Average Capacity 7 | 6 8 8 8 Most Carried 5 | 3 5 5 5 Average Carried 3 | 1 3 3 4 Final Capacity 8 | 8 8 8 8 Final Carried 5 | 2 5 5 4 Class Distribution -------------------- 100% | Mutant Dominant Class ---------------- Mutant | -10/Materials Mutant | -9/Materials Mutant | -9/Mines Resources | -11 -10 -9 -9 ----------- Run | Jun Mat Mat Min Matter Collected 466 | 216 86 142 22 Remotely . | . . . . Salvage Created 467 | . 88 219 160 Parts 36 | . 4 13 19 Haulers Intercepted . | . . . . Recyclers Shooed 1 | . . . 1 Parts Field Recycled . | . . . . Retrieved Matter . | . . . . Parts Self-Destructed . | . . . . Prevented . | . . . . Kills | -11 -10 -9 -9 ------- Run | Jun Mat Mat Min Combat Hostiles Destroyed 19 | . 2 5 12 Guns 11 | . 2 5 4 AOE 8 | . . . 8 Classes Destroyed 5 | . 1 1 3 Tunneler 2 | . . . 2 Swarmer 9 | . . . 9 Grunt 6 | . 2 3 1 Sentry 2 | . . 2 . Assembled 2 | . . . 2 Best Kill Streak 5 | . 2 2 5 Combat Bots Only 5 | . 2 2 5 Max Kills in Single Turn 4 | . 1 1 4 Gunslinging . | . . . . Exploded 3 | . . . 3 Melee . | . . . . Uniques/NPCs Destroyed . | . . . . Combat | -11 -10 -9 -9 -------- Run | Jun Mat Mat Min Damage Taken 1370 | . 189 643 538 Core 331 | . 53 142 136 Absorbed by Shields . | . . . . Core Remaining (%) 89 | 100 78 . . Volleys Fired 51 | . 8 27 16 Largest 2 | . 2 2 2 Hottest 83 | . 40 83 70 Shots Fired 97 | . 16 51 30 Gun 89 | . 16 51 22 Cannon . | . . . . Launcher 8 | . . . 8 Special . | . . . . Kinetic 55 | . 16 32 7 Thermal 13 | . . 13 . Explosive 8 | . . . 8 Electromagnetic 21 | . . 6 15 Robot Hit Streak 7 | . 7 4 4 Robot Miss Streak 4 | . 2 4 4 Penetration Max . | . . . . Secondary Targets 1 | . 1 . . Max Gunslinging Chain 1 | . 1 . . Shots Hit Robots 51 | . 12 27 12 Core Hits 29 | . 5 9 15 Critical Kills . | . . . . Critical Parts Destroyed . | . . . . Critical Strikes . | . . . . Melee Attacks . | . . . . Impact . | . . . . Slashing . | . . . . Piercing . | . . . . Sneak Attacks . | . . . . Combat Hostiles . | . . . . Follow-up Attacks . | . . . . Damage Inflicted 1144 | . 124 398 622 Guns 689 | . 124 385 180 Cannons . | . . . . Explosions 442 | . . . 442 Melee . | . . . . Ramming 13 | . . 13 . Kinetic 390 | . 124 222 44 Thermal 119 | . . 119 . Explosive 442 | . . . 442 Electromagnetic 180 | . . 44 136 Impact . | . . . . Slashing . | . . . . Piercing . | . . . . Highest Corruption 1 | . 1 . . Average Corruption 1 | . 1 . . Corruption Purged . | . . . . Corruption Blocked . | . . . . Effects 1 | . 1 . . Parts Rejected 1 | . 1 . . Overload Shots . | . . . . Overflow Damage 55 | . . . 55 Projectiles . | . . . . Explosions 55 | . . . 55 Melee . | . . . . Knockbacks . | . . . . Impact . | . . . . Kinetic . | . . . . Secondary . | . . . . Self-Inflicted Damage 94 | . . . 94 Shots 3 | . . . 3 Rammed . | . . . . Targets Rammed 5 | . . 5 . Kicked 5 | . . 5 . Crushed . | . . . . Highest Temperature 363 | . 22 363 96 Average Temperature 136 | . 10 196 30 Received Heat Transfer 426 | . 69 237 120 Effects 4 | . . 4 . Shutdowns 1 | . . 1 . Energy Bleed 1 | . . 1 . Interference 1 | . . 1 . Short Circuit 1 | . . 1 . Siege Activations . | . . . . Robots Corrupted . | . . . . Combat Hostiles . | . . . . Parts Fried . | . . . . Impact Corruptions . | . . . . Robots Melted . | . . . . Combat Hostiles . | . . . . Parts Melted . | . . . . Heat Transferred 259 | . . 259 . Parts Sabotaged . | . . . . Parts Stolen . | . . . . Parts Stripped . | . . . . Power Chain Reactions . | . . . . Missiles Intercepted . | . . . . Alert | -11 -10 -9 -9 ------- Run | Jun Mat Mat Min Peak Influence 277 | . 50 221 277 Initial 20 | . . 20 7 Average 77 | . 13 69 162 Maximum Alert Level 1 | . . 1 1 Low Security (%) 88 | 100 100 94 63 Level 1 11 | . . 5 36 Level 2 . | . . . . Level 3 . | . . . . Level 4 . | . . . . Level 5 . | . . . . High Security . | . . . . Max Security . | . . . . Squads Dispatched 2 | . . 2 . Investigation 1 | . . 1 . Extermination . | . . . . Reinforcement 1 | . . 1 . Assault . | . . . . Garrison . | . . . . Intercept . | . . . . Searches Triggered . | . . . . Construction Impeded . | . . . . Haulers Reinforced . | . . . . Active Scanning Responses . | . . . . Cargo Convoy Interrupts . | . . . . Stealth | -11 -10 -9 -9 --------- Run | Jun Mat Mat Min Distress Signals 4 | . . 4 . Communications Jammed . | . . . . Distress Signals . | . . . . Times Spotted 37 | . 3 17 17 Peak Tracking Total 6 | . 2 6 6 Tactical Retreats 2 | . . 1 1 Traps | -11 -10 -9 -9 ------- Run | Jun Mat Mat Min Traps Triggered 3 | . 3 . . Indirectly . | . . . . Trap Hack Attempts . | . . . . Triggered . | . . . . Disarmed . | . . . . Reprogrammed . | . . . . Reused . | . . . . Traps Extracted . | . . . . Installed . | . . . . Triggered . | . . . . Machines | -11 -10 -9 -9 ---------- Run | Jun Mat Mat Min Machines Disabled 2 | . . . 2 Max in Single Turn 1 | . . . 1 Machines Repaired . | . . . . Machines Sabotaged . | . . . . Overloaded Fab Kills . | . . . . Hacking | -11 -10 -9 -9 --------- Run | Jun Mat Mat Min Machines Accessed 2 | . . 2 . Terminals 2 | . . 2 . Fabricators . | . . . . Repair Stations . | . . . . Recycling Units . | . . . . Scanalyzers . | . . . . Garrison Access . | . . . . Total Hacks 6 | . . 6 . Successful 2 | . . 2 . Failed 4 | . . 4 . Catastrophic . | . . . . Database Lockouts . | . . . . Manual 7 | . . 7 . Terminals 6 | . . 6 . Fabricators . | . . . . Repair Stations . | . . . . Recycling Units . | . . . . Scanalyzers . | . . . . Garrison Access . | . . . . Terminal Hacks 1 | . . 1 . Robot Analysis 1 | . . 1 . Fabricator Hacks . | . . . . Repair Station Hacks . | . . . . Recycling Unit Hacks . | . . . . Scanalyzer . | . . . . Garrison Access Hacks . | . . . . Unauthorized Hacks 1 | . . 1 . Terminals 1 | . . 1 . Botnet 1 | . . 1 . Fabricators . | . . . . Repair Stations . | . . . . Recycling Units . | . . . . Scanalyzers . | . . . . Garrison Access . | . . . . Data Cores Recovered . | . . . . Used . | . . . . Hacking Detections 2 | . . 2 . Full Trace Events 1 | . . 1 . Feedback Events . | . . . . Feedback Blocked . | . . . . Robot Schematics Acquired . | . . . . Robots Built . | . . . . Authchips . | . . . . Time . | . . . . Total Robot Build Rating . | . . . . Part Schematics Acquired . | . . . . Parts Built . | . . . . Authchips . | . . . . Time . | . . . . Total Part Build Rating . | . . . . Parts Repaired . | . . . . Time . | . . . . Parts Recycled . | . . . . Recycled Matter . | . . . . Retrieved Matter . | . . . . Retrieved Components . | . . . . Parts Scanalyzed . | . . . . Part Schematics Acquired . | . . . . Parts Damaged . | . . . . Bothacking | -11 -10 -9 -9 ------------ Run | Jun Mat Mat Min Used RIF Installer . | . . . . Robots Hacked . | . . . . Non-combat . | . . . . Combat . | . . . . Robot Hacks Applied . | . . . . Relay Couplers Released . | . . . . Fabnet Peak Effective % . | . . . . Robots Rewired . | . . . . Allies Hacked . | . . . . Hacks Repelled . | . . . . Allies | -11 -10 -9 -9 -------- Run | Jun Mat Mat Min Total Allies . | . . . . Largest Group . | . . . . Highest-Rated Group . | . . . . Highest-Rated Ally . | . . . . Total Orders . | . . . . Ally Attacks . | . . . . Total Damage . | . . . . Kills . | . . . . Allies Corrupted . | . . . . Allies Melted . | . . . . Intel | -11 -10 -9 -9 ------- Run | Jun Mat Mat Min Robot Analysis Total 1 | . . 1 . Derelict Logs Recovered . | . . . . Drone Launches . | . . . . Drone Recoveries . | . . . . Exploration | -11 -10 -9 -9 ------------- Run | Jun Mat Mat Min Turns Passed 977 | 52 212 466 247 Spaces Moved 481 | 35 143 228 75 Core 9 | 7 . . 2 Treads . | . . . . Legs 472 | 28 143 228 73 Wheels . | . . . . Hover . | . . . . Flight . | . . . . Fastest Speed 50 | 50 120 120 150 Average Speed 151 | 110 122 140 259 Slowest Speed 300 | 120 190 260 300 Overloaded Moves . | . . . . Propulsion Burnouts . | . . . . Robots Hopped . | . . . . Cave-ins Triggered . | . . . . Exploration Rate (%) 19 | 3 27 18 28 Regions Visited 3 Branch Regions 1 Pre-discovered Areas . | . . . . Known Exits Taken . | . . . . Unknown Exits Taken 3 | 1 1 1 . Scrap Searched . | . . . . Spaces Dug . | . . . . Terrain Destroyed 53 | . . . 53 Melee . | . . . . Projectile . | . . . . AOE 53 | . . . 53 Terrain Rammed . | . . . . Walls Destroyed . | . . . . Machines Disabled . | . . . . Actions | -11 -10 -9 -9 --------- Run | Jun Mat Mat Min Total 630 | 48 165 321 96 Wait 57 | . 8 49 . Move 478 | 34 142 227 75 Hop . | . . . . Pick Up 18 | 8 5 5 . Fast Attach . | . . . . Attach 14 | 6 2 5 1 Detach . | . . . . Swap 4 | . . 1 3 Drop 3 | . . 2 1 Fire 51 | . 8 27 16 Melee . | . . . . Ram . | . . . . Kick 5 | . . 5 . Crush . | . . . . Escape Stasis . | . . . . Rewire . | . . . . Trap . | . . . . Miscellaneous . | . . . . Route ------- -11/Junkyard -10/Materials -9/Materials -9/Mines History --------- Turn | Location | Event 5 | -11/Junkyard | Discovered new exit (range 15) 53 | -11/Junkyard | Entered Materials 246 | -10/Materials | Discovered new exit (range 11) 265 | -10/Materials | Entered another Materials area 265 | -9/Materials | Evolved 2 slots: Power x1, Propulsion x1 316 | -9/Materials | Build established: Mutant 697 | -9/Materials | Discovered new exit (range 8) 731 | -9/Materials | Entered Mines 904 | -9/Mines | Excavation squad dispatched 904 | -9/Mines | A large section of the Mines collapsed 963 | -9/Mines | Core integrity fell below 50% 978 | -9/Mines | Self-destructed Last Messages --------------- 00910_ Pressure Siphon disabled. 00913_ as-51417 destroyed. 00916_ Acquired 20 matter. 00928_ R-06 Scavenger collects Wheel. 00933_ The unstable cave ceiling collapses. 00933_ R-06 Scavenger collects Imp. Terrain Scanner. 00934_ R-06 Scavenger collects Wheel. 00947_ S-10 Pest destroyed. 00949_ The unstable cave ceiling collapses. 00949_ Aluminum Leg destroyed. 00950_ Grenade Launcher destroyed. 00953_ Ion Engine destroyed. 00959_ Lgt. Armor Plating destroyed. 00962_ T-07 Excavator destroyed. 00962_ G-34 Mercenary destroyed. 00964_ Ion Engine destroyed. 00965_ T-07 Excavator destroyed. 00972_ The unstable cave ceiling collapses. 00974_ EM Pulse Gun destroyed. 00978_ Assault Rifle destroyed. Map ----- +----------------------------------------------------+ | ?????????????????????????????????????????????????? | | ?????????????????????????????????????????????????? | | ?????????????????????????????????????????????????? | | ?????????????????????????????????????????????????? | | ?????????????????????????????????????????????????? | | ?????????????????????????????????????????????????? | | ?????????????????????????????????????????????????? | | ?????????????????????????????????????????????????? | | ?????????????????????????????????????????????????? | | ?????????????????????????????????????????????????? | | ?????????????????????????????????????????????????? | | ?????????????????##??????????????????????????????? | | ?????????????????# ?????????????????????????????? | | ?????????????????# ???????????????#?????????????? | | ?????????????????? ????????????# #?????????????? | | ??????????????????# #??????????# #?????????????? | | ???????????????#??? ???????### ??????????????? | | ???????????????# ??# ?????? ???????????????? | | ???????????????# ## ????? ????????????????? | | ???????????????# ##### ??????????????????? | | ???????##??????# !%% # ???????????????????? | | ???????# ???????? |*t=% ????????????????????? | | ???????# ???????????#!=*g[|#????###??????????????? | | ???????# ?????????????#=!%##????# ?????????? ??? | | ???????# ##???????????###s##????# #???????? #??? | | ??????## ##??????????###@###???# #??????? #???? | | # ##### #??????????# ##### #####? #???? | | # ^ #?????????## s % ##### ## #???? | | # ^ ## #??####???# ## #???? | | ? # #### ##??## # #???? | | #?# ^#^ #### "" % # #???? | | # # # "" # # #???? | | #^ ^ ### """" # ### #???? | | ##### ##?## #######???? #??? | | ????### #???#### ### #??? ?????????? | | ??????# #??????#####?# #???## ???????? | | ??????# #????????????## #???? ?????? | | ??????# ###???????????## #????## ????? | | #?????# ##???????????## #???????????? | | # ##### #????????????## ##???????????? | | # #?????????????## ###????????????? | | #### # #??????????????## ##??????????????? | | #### ## #???????????????## ##???????????????? | | = ### #????????????????####????????????????? | | ######?## #????????????????????????????????????? | | ######??# #???????????????????????????????????? | | =##? #??????????????????????????????????? | | ## #??????????????????????????????????? | | ## ##??????????????????????????????????? | | ######???????????????????????????????????? | +----------------------------------------------------+ Best States ------------- Heat Dissipation 28 Energy Generation 15 Energy Capacity 400 Matter Stores 300 Matter Capacity 300 Sight Range 16 Terrain Scan Density 10 Armor Coverage 150 Evasion (%) 55 Item Schematics ----------------- None Robot Schematics ------------------ None Fabricated ------------ Nothing Alien Tech Used ----------------- None Achievements -------------- None Challenges ------------ None Game ------ Seed AlloyEtherialSystem Manual? 0 Play Time 00:14:08 Cumulative 32.5 hours Start 2023.03.19 @ 15:41:33 End 2023.03.19 @ 15:54:27 Sessions 1 Manual Loads 0 Difficulty Rogue Special Mode None Game No. 41 Rogue 41 Adventurer 0 Explorer 0 Win Type - Total 0 Types 0/0/0/0/0/0/0/0/0 Lore% 24 Gallery% 32 Achievement% 26 Wizard Run 0 Options --------- ASCII 0 Keyboard 0 Movement Mouse Keybinds 0 Fullscreen 1 Font 24/Crisp Map View 76x50 Tactical HUD 1 Map Filters NONE Filters NONE Steam 1 RUN: 83307a9b-561d-4560-afbb-6deba024600e